[Event "*** Titled Tuesday 3|2 Blitz (Late)"]
[Site "Chess.com"]
[Date "2016.11.01"]
[Round "6"]
[White "Zaven_ChessMood"]
[Black "howitzer14"]
[Result "1/2-1/2"]
[WhiteElo "2814"]
[BlackElo "2781"]
[TimeControl "180+2"]
[EndTime "18:13:56 PDT"]
[Termination "Game drawn by agreement"]

1. e4 {[%clk 0:03:00.3]} 1... e5 {[%clk 0:03:01.2]} 2. Nf3 {[%clk 0:03:00.4]}
2... Nc6 {[%clk 0:03:03.1]} 3. Bc4 {[%clk 0:02:59.2]} 3... Nf6 {[%clk
0:03:03.2]} 4. d3 {[%clk 0:03:00]} 4... h6 {[%clk 0:03:03.5]} 5. O-O {[%clk
0:02:57.5]} 5... d6 {[%clk 0:03:03.8]} 6. c3 {[%clk 0:02:57.7]} 6... g6 {[%clk
0:03:02.9]} 7. d4 {[%clk 0:02:56.1]} 7... Qe7 {[%clk 0:03:02.8]} 8. Nbd2 {[%clk
0:02:55.7]} 8... Bg7 {[%clk 0:03:03.2]} 9. Re1 {[%clk 0:02:56]} 9... O-O {[%clk
0:02:59.5]} 10. h3 {[%clk 0:02:54.4]} 10... Bd7 {[%clk 0:02:55.7]} 11. Bd3
{[%clk 0:02:51]} 11... Rae8 {[%clk 0:02:54.2]} 12. Nf1 {[%clk 0:02:49.8]} 12...
Nh5 {[%clk 0:02:51.7]} 13. Be3 {[%clk 0:02:41.9]} 13... a6 {[%clk 0:02:46.7]}
14. Qd2 {[%clk 0:02:40.6]} 14... Kh7 {[%clk 0:02:45.9]} 15. Rad1 {[%clk
0:02:36.7]} 15... Qf6 {[%clk 0:02:43.3]} 16. N1h2 {[%clk 0:02:27.4]} 16... Nf4
{[%clk 0:02:39.4]} 17. Bxf4 {[%clk 0:02:27.1]} 17... Qxf4 {[%clk 0:02:37.6]} 18.
Qxf4 {[%clk 0:02:26.5]} 18... exf4 {[%clk 0:02:39.5]} 19. Nf1 {[%clk 0:02:26.1]}
1/2-1/2

[Event "*** Titled Tuesday 3|2 Blitz (Late)"]
[Site "Chess.com"]
[Date "2016.11.01"]
[Round "6"]
[White "Jahonas"]
[Black "Gau_truc_lon"]
[Result "0-1"]
[WhiteElo "2147"]
[BlackElo "2216"]
[TimeControl "180+2"]
[EndTime "18:15:22 PDT"]
[Termination "Gau_truc_lon won by resignation"]

1. e4 {[%clk 0:03:02]} 1... d5 {[%clk 0:02:59.3]} 2. exd5 {[%clk 0:03:02.3]}
2... Qxd5 {[%clk 0:03:01.2]} 3. Qf3 {[%clk 0:03:03.4]} 3... Nf6 {[%clk
0:03:00.8]} 4. Qxd5 {[%clk 0:03:04.1]} 4... Nxd5 {[%clk 0:03:02.7]} 5. Nc3
{[%clk 0:03:05.2]} 5... Nb4 {[%clk 0:03:03.7]} 6. Kd1 {[%clk 0:03:05.7]} 6...
Bf5 {[%clk 0:02:59.8]} 7. d3 {[%clk 0:03:06.2]} 7... Nd7 {[%clk 0:02:55.9]} 8.
a3 {[%clk 0:03:07.1]} 8... Nc6 {[%clk 0:02:56.5]} 9. Be3 {[%clk 0:03:08]} 9...
O-O-O {[%clk 0:02:53.6]} 10. Nge2 {[%clk 0:03:08.7]} 10... Bg6 {[%clk
0:02:50.6]} 11. h4 {[%clk 0:03:08.5]} 11... Nde5 {[%clk 0:02:44.1]} 12. h5
{[%clk 0:03:08.2]} 12... Bf5 {[%clk 0:02:44.7]} 13. Ng3 {[%clk 0:03:07.4]} 13...
Bg4+ {[%clk 0:02:45.3]} 14. Be2 {[%clk 0:03:07.2]} 14... Bxe2+ {[%clk
0:02:43.3]} 15. Kxe2 {[%clk 0:03:08.3]} 15... e6 {[%clk 0:02:43.6]} 16. f4
{[%clk 0:03:08.6]} 16... Ng4 {[%clk 0:02:43.9]} 17. Nge4 {[%clk 0:03:09.3]}
17... Nxe3 {[%clk 0:02:44.3]} 18. Kxe3 {[%clk 0:03:10.6]} 18... Nd4 {[%clk
0:02:45.1]} 19. Rac1 {[%clk 0:03:11.2]} 19... h6 {[%clk 0:02:36.8]} 20. g4
{[%clk 0:03:10.3]} 20... Be7 {[%clk 0:02:37.6]} 21. Rh2 {[%clk 0:03:07.3]} 21...
f5 {[%clk 0:02:38.2]} 22. Nf2 {[%clk 0:02:58.7]} 22... Bc5 {[%clk 0:02:34.1]}
23. Na4 {[%clk 0:02:44.1]} 23... Nxc2+ {[%clk 0:02:16.6]} 24. Kd2 {[%clk
0:02:43.2]} 24... Bxf2 {[%clk 0:02:15.8]} 25. Rxc2 {[%clk 0:02:43]} 25... Bg3
{[%clk 0:02:15.6]} 26. Rg2 {[%clk 0:02:40.7]} 26... Bxf4+ {[%clk 0:02:16.7]} 27.
Ke2 {[%clk 0:02:36]} 27... Be5 {[%clk 0:02:15.1]} 28. Nc5 {[%clk 0:02:34.8]}
28... Bd4 {[%clk 0:02:08]} 29. Kf3 {[%clk 0:02:24]} 29... fxg4+ {[%clk
0:01:57.5]} 30. Rxg4 {[%clk 0:02:22.3]} 30... Bxc5 {[%clk 0:01:58.6]} 31. Rxc5
{[%clk 0:02:22.4]} 31... Rxd3+ {[%clk 0:01:59.6]} 32. Ke4 {[%clk 0:02:23.2]}
32... Rd7 {[%clk 0:01:59.8]} 0-1

[Event "*** Titled Tuesday 3|2 Blitz (Late)"]
[Site "Chess.com"]
[Date "2016.11.01"]
[Round "6"]
[White "pastouche06"]
[Black "tigra"]
[Result "0-1"]
[WhiteElo "2290"]
[BlackElo "2450"]
[TimeControl "180+2"]
[EndTime "18:15:32 PDT"]
[Termination "tigra won by resignation"]

1. d4 {[%clk 0:03:01.9]} 1... e6 {[%clk 0:03:00.8]} 2. c4 {[%clk 0:03:03]} 2...
Nf6 {[%clk 0:03:00]} 3. Nc3 {[%clk 0:03:03.8]} 3... Bb4 {[%clk 0:02:59.7]} 4.
Qc2 {[%clk 0:03:04.8]} 4... c5 {[%clk 0:03:00.1]} 5. dxc5 {[%clk 0:03:04.7]}
5... Na6 {[%clk 0:03:00]} 6. a3 {[%clk 0:03:01.5]} 6... Bxc3+ {[%clk 0:02:59]}
7. Qxc3 {[%clk 0:03:03.4]} 7... Nxc5 {[%clk 0:03:00.9]} 8. f3 {[%clk 0:03:04.6]}
8... a5 {[%clk 0:02:58.1]} 9. e4 {[%clk 0:03:04.6]} 9... a4 {[%clk 0:02:58.7]}
10. Be3 {[%clk 0:03:01.3]} 10... Qc7 {[%clk 0:02:46.7]} 11. O-O-O {[%clk
0:02:47.4]} 11... e5 {[%clk 0:02:36.3]} 12. Kb1 {[%clk 0:02:41.1]} 12... O-O
{[%clk 0:02:34.9]} 13. Ne2 {[%clk 0:02:33.3]} 13... d6 {[%clk 0:02:32]} 14. Ng3
{[%clk 0:02:31.5]} 14... Be6 {[%clk 0:02:29.7]} 15. Nf5 {[%clk 0:02:30.8]} 15...
Rfd8 {[%clk 0:02:01.1]} 16. Bg5 {[%clk 0:02:17.8]} 16... Nfxe4 {[%clk
0:01:56.6]} 17. fxe4 {[%clk 0:01:56.3]} 17... Nxe4 {[%clk 0:01:58.5]} 18. Ne7+
{[%clk 0:01:57.6]} 18... Kf8 {[%clk 0:01:52.7]} 0-1

[Event "*** Titled Tuesday 3|2 Blitz (Late)"]
[Site "Chess.com"]
[Date "2016.11.01"]
[Round "6"]
[White "NTBT_DHS"]
[Black "DanielNaroditsky"]
[Result "0-1"]
[WhiteElo "2510"]
[BlackElo "2740"]
[TimeControl "180+2"]
[EndTime "18:16:25 PDT"]
[Termination "DanielNaroditsky won by resignation"]

1. d4 {[%clk 0:03:01.9]} 1... Nf6 {[%clk 0:02:59.5]} 2. c4 {[%clk 0:03:03]} 2...
d6 {[%clk 0:03:01.1]} 3. Nf3 {[%clk 0:03:03.4]} 3... Nbd7 {[%clk 0:03:03]} 4.
Bf4 {[%clk 0:03:02.5]} 4... g6 {[%clk 0:03:01.9]} 5. h3 {[%clk 0:03:03.7]} 5...
Bg7 {[%clk 0:03:03.4]} 6. Nc3 {[%clk 0:03:05.1]} 6... O-O {[%clk 0:03:05.1]} 7.
e3 {[%clk 0:03:05.7]} 7... c5 {[%clk 0:03:05.3]} 8. Be2 {[%clk 0:03:05.8]} 8...
b6 {[%clk 0:02:50.4]} 9. O-O {[%clk 0:03:02.3]} 9... Bb7 {[%clk 0:02:52.1]} 10.
d5 {[%clk 0:03:03.3]} 10... a6 {[%clk 0:02:53.3]} 11. a4 {[%clk 0:03:02.2]}
11... h6 {[%clk 0:02:50.1]} 12. Nd2 {[%clk 0:02:58.9]} 12... Ne8 {[%clk
0:02:46.7]} 13. Qc2 {[%clk 0:02:59.1]} 13... Nc7 {[%clk 0:02:47.6]} 14. Bg3
{[%clk 0:02:54.2]} 14... f5 {[%clk 0:02:48.1]} 15. f4 {[%clk 0:02:52.3]} 15...
e5 {[%clk 0:02:33.9]} 16. e4 {[%clk 0:02:51]} 16... exf4 {[%clk 0:02:33.5]} 17.
Bxf4 {[%clk 0:02:51]} 17... Ne5 {[%clk 0:02:14.3]} 18. exf5 {[%clk 0:02:51.1]}
18... Rxf5 {[%clk 0:02:16.2]} 19. Bxe5 {[%clk 0:02:47.4]} 19... Rxe5 {[%clk
0:02:15.9]} 20. Qxg6 {[%clk 0:02:47.2]} 20... Qe8 {[%clk 0:01:35.8]} 21. Qxd6
{[%clk 0:02:35.8]} 21... Ne6 {[%clk 0:01:07.9]} 22. Bg4 {[%clk 0:02:20.8]} 22...
Nd4 {[%clk 0:01:02.1]} 23. Nf3 {[%clk 0:02:02.5]} 23... Nxf3+ {[%clk 0:00:55.5]}
24. Rxf3 {[%clk 0:01:59]} 24... Re1+ {[%clk 0:00:56.7]} 25. Rxe1 {[%clk
0:01:59.7]} 25... Qxe1+ {[%clk 0:00:57.6]} 26. Rf1 {[%clk 0:02:01.4]} 26... Bd4+
{[%clk 0:00:58.9]} 27. Kh1 {[%clk 0:02:03]} 27... Qxf1+ {[%clk 0:01:00.1]} 28.
Kh2 {[%clk 0:02:03.3]} 28... Bg1+ {[%clk 0:01:00]} 0-1

[Event "*** Titled Tuesday 3|2 Blitz (Late)"]
[Site "Chess.com"]
[Date "2016.11.01"]
[Round "6"]
[White "michaelk123"]
[Black "g2_g3"]
[Result "1-0"]
[WhiteElo "2152"]
[BlackElo "1843"]
[TimeControl "180+2"]
[EndTime "18:16:55 PDT"]
[Termination "michaelk123 won by resignation"]

1. e4 {[%clk 0:03:01.9]} 1... e5 {[%clk 0:03:00.6]} 2. Nf3 {[%clk 0:03:01.4]}
2... Nc6 {[%clk 0:03:00.3]} 3. Bb5 {[%clk 0:03:01.7]} 3... f5 {[%clk 0:03:01]}
4. d3 {[%clk 0:02:58.4]} 4... fxe4 {[%clk 0:03:00.9]} 5. dxe4 {[%clk 0:02:58.2]}
5... Nf6 {[%clk 0:03:02.4]} 6. Qd3 {[%clk 0:02:53.3]} 6... Bc5 {[%clk
0:02:55.5]} 7. O-O {[%clk 0:02:49.9]} 7... d6 {[%clk 0:02:53.8]} 8. Qc4 {[%clk
0:02:39.9]} 8... Bd7 {[%clk 0:02:44.9]} 9. Bxc6 {[%clk 0:02:36.8]} 9... Bxc6
{[%clk 0:02:38]} 10. Nxe5 {[%clk 0:02:37]} 10... Bxf2+ {[%clk 0:02:33.2]} 11.
Rxf2 {[%clk 0:02:37.8]} 11... dxe5 {[%clk 0:02:34.3]} 12. Nc3 {[%clk 0:02:37.6]}
12... Qd4 {[%clk 0:02:30.1]} 13. Qe6+ {[%clk 0:02:37.6]} 13... Kd8 {[%clk
0:02:20.1]} 14. Bg5 {[%clk 0:02:37.6]} 14... Re8 {[%clk 0:02:01]} 15. Bxf6+
{[%clk 0:02:28.4]} 15... gxf6 {[%clk 0:02:01.6]} 16. Qxf6+ {[%clk 0:02:29.9]}
16... Kc8 {[%clk 0:02:01.3]} 17. Rd1 {[%clk 0:02:25.8]} 17... Qc5 {[%clk
0:01:51.9]} 18. b4 {[%clk 0:02:04]} 18... Qe7 {[%clk 0:01:46.1]} 19. b5 {[%clk
0:01:44.2]} 19... Qxf6 {[%clk 0:01:39.9]} 20. Rxf6 {[%clk 0:01:44.9]} 20... Bd7
{[%clk 0:01:38.1]} 21. Rf7 {[%clk 0:01:46.3]} 21... Bg4 {[%clk 0:01:31]} 22. Rd3
{[%clk 0:01:46.3]} 22... h5 {[%clk 0:01:25.6]} 23. Nd5 {[%clk 0:01:42.7]} 23...
Be6 {[%clk 0:01:17.5]} 24. Re7 {[%clk 0:01:36.7]} 24... Kd8 {[%clk 0:00:51]} 25.
Rxe8+ {[%clk 0:01:31.3]} 25... Kxe8 {[%clk 0:00:52.1]} 26. Nxc7+ {[%clk
0:01:33]} 26... Ke7 {[%clk 0:00:52.4]} 27. Nxa8 {[%clk 0:01:34.1]} 1-0

[Event "*** Titled Tuesday 3|2 Blitz (Late)"]
[Site "Chess.com"]
[Date "2016.11.01"]
[Round "6"]
[White "micfel"]
[Black "Peroncio"]
[Result "1-0"]
[WhiteElo "2295"]
[BlackElo "2478"]
[TimeControl "180+2"]
[EndTime "18:17:46 PDT"]
[Termination "micfel won by checkmate"]

1. e4 {[%clk 0:03:00.2]} 1... c5 {[%clk 0:02:54.1]} 2. Nf3 {[%clk 0:02:59.8]}
2... d6 {[%clk 0:02:55.5]} 3. d4 {[%clk 0:03:00.2]} 3... cxd4 {[%clk 0:02:57.4]}
4. Nxd4 {[%clk 0:03:00.5]} 4... Nf6 {[%clk 0:02:58.9]} 5. Nc3 {[%clk 0:02:56.5]}
5... a6 {[%clk 0:03:00.2]} 6. Be2 {[%clk 0:02:56.2]} 6... e5 {[%clk 0:03:01]} 7.
Nb3 {[%clk 0:02:56.7]} 7... Be7 {[%clk 0:03:02.3]} 8. Be3 {[%clk 0:02:57.1]}
8... O-O {[%clk 0:03:03.6]} 9. O-O {[%clk 0:02:53.7]} 9... Be6 {[%clk
0:03:04.5]} 10. h3 {[%clk 0:02:51.6]} 10... Nbd7 {[%clk 0:03:05.1]} 11. Qd2
{[%clk 0:02:52.2]} 11... Qc7 {[%clk 0:03:06]} 12. Rad1 {[%clk 0:02:52.5]} 12...
b5 {[%clk 0:03:06.2]} 13. a3 {[%clk 0:02:51]} 13... Rac8 {[%clk 0:03:04.5]} 14.
f4 {[%clk 0:02:44.5]} 14... Nc5 {[%clk 0:02:44.9]} 15. Nxc5 {[%clk 0:02:41.1]}
15... dxc5 {[%clk 0:02:45]} 16. fxe5 {[%clk 0:02:41.7]} 16... Nd7 {[%clk
0:02:40.6]} 17. Nd5 {[%clk 0:02:38.3]} 17... Bxd5 {[%clk 0:02:38.8]} 18. exd5
{[%clk 0:02:26.5]} 18... Qxe5 {[%clk 0:02:38.8]} 19. Bg4 {[%clk 0:02:22]} 19...
Rcd8 {[%clk 0:02:26.6]} 20. d6 {[%clk 0:02:11.2]} 20... Bf6 {[%clk 0:02:13.1]}
21. c3 {[%clk 0:02:10.9]} 21... Qe8 {[%clk 0:01:23.2]} 22. Bxd7 {[%clk
0:02:02.9]} 22... Qxd7 {[%clk 0:01:20.3]} 23. Bxc5 {[%clk 0:02:03.5]} 23... Qc6
{[%clk 0:01:16.5]} 24. b4 {[%clk 0:01:54.8]} 24... Rd7 {[%clk 0:01:14.9]} 25.
Rxf6 {[%clk 0:01:41.5]} 25... gxf6 {[%clk 0:01:14]} 26. Qf4 {[%clk 0:01:41.8]}
26... Re8 {[%clk 0:01:05.8]} 27. Rd3 {[%clk 0:01:37.2]} 27... Re6 {[%clk
0:00:16.6]} 28. Rg3+ {[%clk 0:01:36]} 28... Kf8 {[%clk 0:00:17.5]} 29. Qh6+
{[%clk 0:01:35.1]} 29... Ke8 {[%clk 0:00:18.5]} 30. Rg8# {[%clk 0:01:35.5]} 1-0

[Event "*** Titled Tuesday 3|2 Blitz (Late)"]
[Site "Chess.com"]
[Date "2016.11.01"]
[Round "6"]
[White "Izoria123"]
[Black "chito89"]
[Result "1-0"]
[WhiteElo "2589"]
[BlackElo "2482"]
[TimeControl "180+2"]
[EndTime "18:18:34 PDT"]
[Termination "Izoria123 won by resignation"]

1. Nf3 {[%clk 0:03:02]} 1... Nf6 {[%clk 0:02:58.7]} 2. c4 {[%clk 0:03:02.6]}
2... e6 {[%clk 0:02:58.1]} 3. g3 {[%clk 0:03:03.1]} 3... d5 {[%clk 0:02:47.6]}
4. Bg2 {[%clk 0:03:03.4]} 4... dxc4 {[%clk 0:02:48.2]} 5. O-O {[%clk 0:03:01.9]}
5... c6 {[%clk 0:02:43.5]} 6. a4 {[%clk 0:02:59.5]} 6... Nbd7 {[%clk 0:02:39.1]}
7. Qc2 {[%clk 0:02:58]} 7... a5 {[%clk 0:02:23.4]} 8. Qxc4 {[%clk 0:02:57.2]}
8... Nb6 {[%clk 0:02:18.8]} 9. Qb3 {[%clk 0:02:54.3]} 9... Nbd5 {[%clk
0:02:19.2]} 10. Nc3 {[%clk 0:02:53.8]} 10... Be7 {[%clk 0:02:04.2]} 11. d4
{[%clk 0:02:48.6]} 11... b6 {[%clk 0:02:02.7]} 12. e4 {[%clk 0:02:46.5]} 12...
Nb4 {[%clk 0:02:02.5]} 13. Bg5 {[%clk 0:02:34.6]} 13... Ba6 {[%clk 0:02:01]} 14.
Rfc1 {[%clk 0:02:32.5]} 14... Rc8 {[%clk 0:01:50.2]} 15. e5 {[%clk 0:02:22.9]}
15... Nfd5 {[%clk 0:01:46.2]} 16. Bxe7 {[%clk 0:02:24]} 16... Qxe7 {[%clk
0:01:41.2]} 17. Ne4 {[%clk 0:02:25]} 17... O-O {[%clk 0:01:42.5]} 18. Nfd2
{[%clk 0:02:12.7]} 18... Rc7 {[%clk 0:01:40.7]} 19. Nc4 {[%clk 0:02:11.3]} 19...
Bxc4 {[%clk 0:01:30.6]} 20. Rxc4 {[%clk 0:02:06.4]} 20... f6 {[%clk 0:01:24.1]}
21. exf6 {[%clk 0:02:06.6]} 21... gxf6 {[%clk 0:01:22.8]} 22. Re1 {[%clk
0:02:06.3]} 22... f5 {[%clk 0:01:22.8]} 23. Nd2 {[%clk 0:02:04.9]} 23... c5
{[%clk 0:01:19.8]} 24. Nf3 {[%clk 0:02:03.3]} 24... Qf6 {[%clk 0:01:17.5]} 25.
h4 {[%clk 0:02:00.7]} 25... Rfc8 {[%clk 0:01:14.7]} 26. Ng5 {[%clk 0:01:56.5]}
26... Re8 {[%clk 0:00:55.3]} 27. dxc5 {[%clk 0:01:56.4]} 27... h6 {[%clk
0:00:48.8]} 28. Rxe6 {[%clk 0:01:27.9]} 28... Rxe6 {[%clk 0:00:46.4]} 29. Nxe6
{[%clk 0:01:29.8]} 29... Qxe6 {[%clk 0:00:47.3]} 30. Rxb4 {[%clk 0:01:17.8]}
30... Qe1+ {[%clk 0:00:35.1]} 31. Kh2 {[%clk 0:01:18.9]} 31... axb4 {[%clk
0:00:25.1]} 32. Qxd5+ {[%clk 0:01:17.4]} 32... Kg7 {[%clk 0:00:26.7]} 33. cxb6
{[%clk 0:01:12.7]} 33... Rc2 {[%clk 0:00:18.7]} 34. b7 {[%clk 0:01:09.7]} 1-0

[Event "*** Titled Tuesday 3|2 Blitz (Late)"]
[Site "Chess.com"]
[Date "2016.11.01"]
[Round "6"]
[White "kereswasbest"]
[Black "oskariot"]
[Result "1-0"]
[WhiteElo "2143"]
[BlackElo "2340"]
[TimeControl "180+2"]
[EndTime "18:18:35 PDT"]
[Termination "kereswasbest won by resignation"]

1. d4 {[%clk 0:03:02]} 1... Nf6 {[%clk 0:03:00.8]} 2. c4 {[%clk 0:03:01.5]} 2...
g6 {[%clk 0:03:02.1]} 3. Nc3 {[%clk 0:03:02.8]} 3... Bg7 {[%clk 0:03:03]} 4. e4
{[%clk 0:03:02.6]} 4... O-O {[%clk 0:03:04]} 5. Nf3 {[%clk 0:03:04]} 5... d6
{[%clk 0:03:05.4]} 6. Be2 {[%clk 0:03:04.9]} 6... c5 {[%clk 0:03:06.8]} 7. d5
{[%clk 0:03:03.6]} 7... e6 {[%clk 0:03:07.8]} 8. O-O {[%clk 0:03:03.5]} 8...
exd5 {[%clk 0:03:09.3]} 9. exd5 {[%clk 0:03:04.6]} 9... Re8 {[%clk 0:03:10.8]}
10. h3 {[%clk 0:03:03.2]} 10... Ne4 {[%clk 0:03:11.5]} 11. Nxe4 {[%clk
0:02:59.1]} 11... Rxe4 {[%clk 0:03:12.7]} 12. Bd3 {[%clk 0:03:00.5]} 12... Re8
{[%clk 0:03:13.6]} 13. Bf4 {[%clk 0:03:00.8]} 13... Bxb2 {[%clk 0:03:08.7]} 14.
Qd2 {[%clk 0:02:47.8]} 14... Bxa1 {[%clk 0:02:57.9]} 15. Rxa1 {[%clk 0:02:46.4]}
15... Qf6 {[%clk 0:02:55.2]} 16. Rb1 {[%clk 0:02:43.8]} 16... Nd7 {[%clk
0:02:41.4]} 17. Bg5 {[%clk 0:02:40.2]} 17... Qg7 {[%clk 0:02:36.2]} 18. Bh6
{[%clk 0:02:40.1]} 18... Qf6 {[%clk 0:02:36.9]} 19. Bg5 {[%clk 0:02:39.5]} 19...
Qh8 {[%clk 0:02:36.6]} 20. Qf4 {[%clk 0:02:23.9]} 20... Ne5 {[%clk 0:02:33.9]}
21. Bf6 {[%clk 0:02:18.5]} 21... Nxd3 {[%clk 0:02:34.5]} 22. Qh4 {[%clk
0:02:18.1]} 22... Re4 {[%clk 0:02:26.2]} 23. g4 {[%clk 0:02:03.1]} 23... Qxf6
{[%clk 0:01:39.9]} 24. Qxf6 {[%clk 0:02:01.8]} 24... Rf4 {[%clk 0:01:41.2]} 25.
Qd8+ {[%clk 0:01:58]} 25... Kg7 {[%clk 0:01:41.5]} 26. Ng5 {[%clk 0:01:27.8]}
26... h6 {[%clk 0:01:34.9]} 27. Rb3 {[%clk 0:01:11.4]} 27... Nxf2 {[%clk
0:01:31.2]} 28. Ne6+ {[%clk 0:00:52]} 28... fxe6 {[%clk 0:01:24.7]} 29. dxe6
{[%clk 0:00:53.9]} 29... Rf8 {[%clk 0:00:27.8]} 30. e7 {[%clk 0:00:52.6]} 1-0

[Event "*** Titled Tuesday 3|2 Blitz (Late)"]
[Site "Chess.com"]
[Date "2016.11.01"]
[Round "6"]
[White "Alexander_Moskalenko"]
[Black "TheSovietChess"]
[Result "0-1"]
[WhiteElo "2655"]
[BlackElo "2553"]
[TimeControl "180+2"]
[EndTime "18:18:59 PDT"]
[Termination "TheSovietChess won by resignation"]

1. d4 {[%clk 0:03:02]} 1... Nf6 {[%clk 0:02:58.3]} 2. Nf3 {[%clk 0:03:03.6]}
2... g6 {[%clk 0:02:59.7]} 3. Nbd2 {[%clk 0:03:03.8]} 3... Bg7 {[%clk
0:03:00.7]} 4. e4 {[%clk 0:03:04.8]} 4... d5 {[%clk 0:03:01.4]} 5. e5 {[%clk
0:02:55.7]} 5... Nfd7 {[%clk 0:03:01.3]} 6. c3 {[%clk 0:02:55.9]} 6... c5 {[%clk
0:03:00.9]} 7. Bd3 {[%clk 0:02:54.6]} 7... O-O {[%clk 0:03:01.7]} 8. h4 {[%clk
0:02:54.7]} 8... Nc6 {[%clk 0:03:03.2]} 9. h5 {[%clk 0:02:42.4]} 9... Nb6 {[%clk
0:02:44.4]} 10. a4 {[%clk 0:02:37.9]} 10... a5 {[%clk 0:02:44.2]} 11. hxg6
{[%clk 0:02:33.1]} 11... fxg6 {[%clk 0:02:44.2]} 12. Ng5 {[%clk 0:02:34.1]}
12... cxd4 {[%clk 0:02:42.9]} 13. Ndf3 {[%clk 0:02:23.8]} 13... dxc3 {[%clk
0:02:42.2]} 14. bxc3 {[%clk 0:02:25.7]} 14... Rxf3 {[%clk 0:02:14.2]} 15. Nxf3
{[%clk 0:02:17.4]} 15... Bg4 {[%clk 0:02:14.4]} 16. Rxh7 {[%clk 0:02:13.7]}
16... Nxe5 {[%clk 0:02:12.8]} 17. Rh4 {[%clk 0:02:03.8]} 17... Nxd3+ {[%clk
0:02:12.2]} 18. Qxd3 {[%clk 0:02:04.8]} 18... Bf5 {[%clk 0:02:12.6]} 19. Qd1
{[%clk 0:01:42.4]} 19... Bxc3+ {[%clk 0:02:04.8]} 20. Bd2 {[%clk 0:01:43.7]}
20... Bg7 {[%clk 0:02:03.6]} 21. Rc1 {[%clk 0:01:39.8]} 21... Nc4 {[%clk
0:02:04.1]} 22. Kf1 {[%clk 0:01:41.3]} 22... Rc8 {[%clk 0:02:04.2]} 23. Bh6
{[%clk 0:01:35.2]} 23... Bb2 {[%clk 0:01:50.2]} 24. Rb1 {[%clk 0:01:27.4]} 24...
Bf6 {[%clk 0:01:41.8]} 25. Bg5 {[%clk 0:01:26.2]} 25... b6 {[%clk 0:01:41.6]}
26. Bxf6 {[%clk 0:01:12.6]} 26... exf6 {[%clk 0:01:42.1]} 27. Rc1 {[%clk
0:01:14.2]} 27... Kg7 {[%clk 0:01:42.7]} 28. Kg1 {[%clk 0:01:13.5]} 28... Be4
{[%clk 0:01:43.4]} 29. Nd4 {[%clk 0:01:08.7]} 29... Qd7 {[%clk 0:01:43.9]} 30.
f3 {[%clk 0:01:09.4]} 30... g5 {[%clk 0:01:44.1]} 31. fxe4 {[%clk 0:00:44.2]}
31... gxh4 {[%clk 0:01:43.3]} 32. Nf5+ {[%clk 0:00:45.8]} 32... Kf8 {[%clk
0:01:43.5]} 33. Qh5 {[%clk 0:00:41.6]} 33... dxe4 {[%clk 0:01:43.3]} 34. Qg6
{[%clk 0:00:42.6]} 34... Qf7 {[%clk 0:01:43.5]} 35. Qg4 {[%clk 0:00:36]} 35...
Nd6 {[%clk 0:01:43.7]} 36. Rd1 {[%clk 0:00:35.5]} 36... Nxf5 {[%clk 0:01:43.2]}
37. Qxf5 {[%clk 0:00:37.4]} 37... Rc5 {[%clk 0:01:43.6]} 38. Rd8+ {[%clk
0:00:32.3]} 38... Kg7 {[%clk 0:01:44.4]} 39. Qg4+ {[%clk 0:00:33.3]} 39... Rg5
{[%clk 0:01:44.3]} 40. Qxh4 {[%clk 0:00:23.8]} 40... Qe7 {[%clk 0:01:44.4]} 41.
Qh8+ {[%clk 0:00:20.6]} 41... Kg6 {[%clk 0:01:45.2]} 42. Qg8+ {[%clk 0:00:21.8]}
42... Qg7 {[%clk 0:01:45.7]} 43. Qe6 {[%clk 0:00:21.3]} 43... Kh6 {[%clk
0:01:46.4]} 44. Qh3+ {[%clk 0:00:21.4]} 44... Rh5 {[%clk 0:01:47.3]} 45. Qe3+
{[%clk 0:00:22]} 45... Qg5 {[%clk 0:01:47.9]} 46. Qxe4 {[%clk 0:00:23.5]} 46...
Qc5+ {[%clk 0:01:47.9]} 47. Qd4 {[%clk 0:00:16.6]} 47... Qc1+ {[%clk 0:01:46.8]}
48. Qd1 {[%clk 0:00:16.3]} 48... Qe3+ {[%clk 0:01:47.4]} 0-1

[Event "*** Titled Tuesday 3|2 Blitz (Late)"]
[Site "Chess.com"]
[Date "2016.11.01"]
[Round "6"]
[White "attack2mateU"]
[Black "spirals5"]
[Result "0-1"]
[WhiteElo "2412"]
[BlackElo "2280"]
[TimeControl "180+2"]
[EndTime "18:19:20 PDT"]
[Termination "spirals5 won on time"]

1. e4 {[%clk 0:03:01.9]} 1... c5 {[%clk 0:03:00.6]} 2. Nf3 {[%clk 0:02:59]} 2...
d6 {[%clk 0:03:00.8]} 3. d4 {[%clk 0:02:59.9]} 3... cxd4 {[%clk 0:03:01.3]} 4.
Nxd4 {[%clk 0:03:00.8]} 4... Nf6 {[%clk 0:03:01.9]} 5. Nc3 {[%clk 0:02:59.8]}
5... a6 {[%clk 0:03:02.4]} 6. h3 {[%clk 0:02:59.3]} 6... e5 {[%clk 0:03:01.6]}
7. Nde2 {[%clk 0:02:49.1]} 7... h5 {[%clk 0:03:01.2]} 8. Bg5 {[%clk 0:02:40.4]}
8... Be6 {[%clk 0:03:01.5]} 9. Bxf6 {[%clk 0:02:34.1]} 9... Qxf6 {[%clk
0:03:00]} 10. Nd5 {[%clk 0:02:35.8]} 10... Qd8 {[%clk 0:02:59.4]} 11. Nec3
{[%clk 0:02:27.7]} 11... Nc6 {[%clk 0:02:55]} 12. Bc4 {[%clk 0:02:20.2]} 12...
Rc8 {[%clk 0:02:54]} 13. O-O {[%clk 0:02:20.4]} 13... b5 {[%clk 0:02:45]} 14.
Bb3 {[%clk 0:02:19]} 14... Nd4 {[%clk 0:02:45.3]} 15. f4 {[%clk 0:02:14.3]}
15... Nxb3 {[%clk 0:02:45]} 16. axb3 {[%clk 0:02:14.4]} 16... Be7 {[%clk
0:02:34.6]} 17. f5 {[%clk 0:02:09.5]} 17... Bd7 {[%clk 0:02:35]} 18. Nxe7 {[%clk
0:01:43.3]} 18... Qxe7 {[%clk 0:02:35.3]} 19. Nd5 {[%clk 0:01:45]} 19... Qd8
{[%clk 0:02:35.8]} 20. Rxa6 {[%clk 0:01:44.9]} 20... Bc6 {[%clk 0:02:22.7]} 21.
Qd2 {[%clk 0:01:22.4]} 21... Bxd5 {[%clk 0:01:55.6]} 22. Qxd5 {[%clk 0:01:17.6]}
22... O-O {[%clk 0:01:53]} 23. f6 {[%clk 0:01:14.4]} 23... g6 {[%clk 0:01:45]}
24. Rxd6 {[%clk 0:01:08.6]} 24... Qc7 {[%clk 0:01:41.6]} 25. c3 {[%clk
0:01:07.2]} 25... Qc5+ {[%clk 0:01:41.5]} 26. Qxc5 {[%clk 0:01:07.9]} 26... Rxc5
{[%clk 0:01:42.1]} 27. Rfd1 {[%clk 0:01:07.9]} 27... b4 {[%clk 0:01:36.4]} 28.
c4 {[%clk 0:01:08.9]} 28... Ra5 {[%clk 0:01:36.5]} 29. R1d5 {[%clk 0:01:07.6]}
29... Ra2 {[%clk 0:01:36.4]} 30. Rxe5 {[%clk 0:01:08.1]} 30... Rxb2 {[%clk
0:01:37.1]} 31. Rd3 {[%clk 0:01:09.3]} 31... Ra8 {[%clk 0:01:36.9]} 32. Rb5
{[%clk 0:01:09.4]} 32... Raa2 {[%clk 0:01:34]} 33. Rg3 {[%clk 0:01:05.4]} 33...
Re2 {[%clk 0:01:30.4]} 34. e5 {[%clk 0:01:03.4]} 34... Ra1+ {[%clk 0:01:24.7]}
35. Kh2 {[%clk 0:01:03]} 35... Ree1 {[%clk 0:01:21.2]} 36. Rxg6+ {[%clk
0:00:13.9]} 36... fxg6 {[%clk 0:01:21.3]} 37. Kg3 {[%clk 0:00:15.6]} 37... g5
{[%clk 0:01:17]} 38. h4 {[%clk 0:00:13]} 38... Re3+ {[%clk 0:01:09.4]} 39. Kf2
{[%clk 0:00:12.9]} 39... Rae1 {[%clk 0:01:05.2]} 40. hxg5 {[%clk 0:00:09.9]}
40... Rxe5 {[%clk 0:01:03.6]} 41. Rb8+ {[%clk 0:00:04.9]} 41... Kf7 {[%clk
0:01:04.3]} 42. Rb7+ {[%clk 0:00:06.5]} 42... Kg6 {[%clk 0:01:00.1]} 0-1